[Event "1000 GM Labor Day Super Swiss 2024"]
[Site "San Jose"]
[Date "2024.09.03"]
[Round "7.19"]
[White "Gonzalez Zharikov, Andrey"]
[Black "Harish, Neeraj"]
[Result "1/2-1/2"]
[Annotator "TA"]
[ECO "C64"]
[WhiteElo "2070"]
[BlackElo "2118"]
[PlyCount "168"]
[EventDate "2024.08.30"]
[EventType "swiss"]
[EventCountry "USA"]
[SourceTitle "playchess.com"]
[Source "ChessBase"]
[SourceQuality "1"]
[TimeControl "5400+30"]

{[%evp 9,168,22,21,31,14,24,38,47,56,47,43,56,64,36,44,49,31,46,52,4,25,37,37,46,45,41,52,52,39,40,82,57,58,42,99,62,47,30,30,33,36,39,39,39,32,29,80,76,86,90,88,90,90,73,79,76,82,82,74,66,66,58,58,58,58,58,58,58,58,58,97,97,97,97,97,97,97,0,97,97,97,97,97,0,97,97,97,97,97,97,97,97,97,97,97,97,97,97,97,97,97,97,97,97,97,97,97,97,97,97,97,97,97,0,97,97,97,97,97,97,97,97,97,97,97,0,97,97,97,97,97,0,3,0,0,0,0,0,0,0,0,0,1,1,1,1,30,8,44,44,44,44,44,44,44,44,44,15,30,30,88]} 1. e4 {[%emt 0:00:02]} e5 {[%emt 0:00:09]} 2. Nf3 {[%emt 0:00:01]} Nc6 {[%emt 0:00:08]} 3. Bb5 {[%emt 0:00:04]} Bc5 {[%emt 0:00:17]} 4. c3 {[%emt 0:00:06]} Nf6 {[%emt 0:00:12]} 5. d4 {[%emt 0:00:05]} exd4 {[%emt 0:00:36]} 6. e5 {[%emt 0:00:06]} Nd5 {[%emt 0:00:13]} 7. O-O {[%emt 0:05:15][%cal Rc3d4]} O-O {[%emt 0:01:43]} 8. cxd4 {[%emt 0:01:46] White is slightly better.} Be7 {[%emt 0:00:22]} 9. Qb3 {[%emt 0:03:29]} Nb6 {[%emt 0:07:48]} 10. d5 {[%emt 0:04:41]} Nb8 {[%emt 0:00:05] [#]} 11. d6 $1 {[%emt 0:02:36] White is much more active.} cxd6 {[%emt 0:00:31]} 12. exd6 {[%emt 0:00:02]} Bxd6 {[%emt 0:01:40]} 13. a4 {[%emt 0:01:49] And now a5 would win.} a5 $1 {[%emt 0:02:04]} 14. Be3 {[%emt 0:03:23]} (14. Bd3 $14 {was preferrable.} h6 15. Qb5) 14... Bb4 {[%emt 0:02:05]} (14... Na6 {looks sharper.} 15. Bd3 Bb4 16. Bg5 Qe8) 15. Nc3 {[%emt 0:02:54]} d6 {[%emt 0:02:05]} 16. Bxb6 {[%emt 0:07:23]} Qxb6 {[%emt 0:00:26]} 17. Nd5 {[%emt 0:00:07][%csl LRb4,LRb6]} Qd8 {[%emt 0:00:13]} 18. Nxb4 {[%emt 0:02:10]} axb4 {[%emt 0:00:08]} 19. Qxb4 {[%emt 0:00:13]} Be6 {[%emt 0:00:25]} 20. Rad1 {[%emt 0:02:57]} d5 {[%emt 0:01:32]} 21. Nd4 {[%emt 0:00:53]} Nd7 {[%emt 0:03:37]} (21... Na6 $14 22. Qd2 Bg4) 22. Nxe6 {[%emt 0:01:52]} (22. Qc3 {simplifies} Qb6 23. Nxe6 Qxe6 24. Qd4) 22... fxe6 {[%emt 0:00:07]} 23. Qd6 {[%emt 0:00:01]} Qb6 $1 {[%emt 0:02:49]} 24. Qxd7 {[%emt 0:16:57]} (24. Qxb6 {simplifies} Nxb6 25. b3 Rf7 26. Rfe1) 24... Rf7 {[%emt 0:00:29] [#]} 25. a5 $1 {[%emt 0:00:05]} Qxa5 {[%emt 0:10:18]} 26. Qxe6 {[%emt 0:02:04]} (26. b4 Qb6 (26... Qxb4 $2 {perishes.} 27. Rb1 $18) 27. Rfe1 Qxf2+ (27... Rxf2 $2 {is the wrong capture.} 28. Rxe6 Qa7 29. Kh1 $18) 28. Kh1 Rxd7 $11) 26... Qxb5 {[%emt 0:00:11]} 27. Rd2 {[%emt 0:03:49][%cal Bd1d2,Bd2d5,Bd5b5][%mdl 32]} Re8 {[%emt 0:01:31]} (27... Rd8 $11) 28. Qxd5 $16 {[%emt 0:01:50]} Qxd5 {[%emt 0:00:22]} 29. Rxd5 {[%emt 0:00:02][%mdl 4096] Endgame. KRR-KRR} Re2 {[%emt 0:01:10]} 30. Rb5 {[%emt 0:00:32]} h6 {[%emt 0:00:53]} 31. h3 {[%emt 0:00:23]} Kh7 {[%emt 0:01:11]} 32. Kh2 {[%emt 0:00:46]} Rd2 {[%emt 0:02:10]} 33. Kg3 {[%emt 0:00:25]} Rc7 {[%emt 0:00:21]} 34. b3 {[%emt 0:01:39]} Rb2 {[%emt 0:00:37]} 35. f3 {[%emt 0:00:58]} Rc3 {[%emt 0:03:43]} 36. Rxb7 {[%emt 0:00:07]} Rcxb3 {[%emt 0:00:06]} 37. Rxb3 {[%emt 0:00:22]} Rxb3 $14 {[%emt 0:00:06] KR-KR} 38. h4 {[%emt 0:00:11][%cal Bh3h4,Bh4h5][%mdl 32]} Kg6 {[%emt 0:00:47]} 39. Rc1 {[%emt 0:00:12]} Rb2 {[%emt 0:00:42]} 40. Rc6+ {[%emt 0:00:09]} Kf7 {[%emt 0:00:06]} 41. h5 {[%emt 0:00:25]} Ra2 {[%emt 0:00:26]} 42. Kh3 {[%emt 0:00:09]} Rf2 {[%emt 0:00:21]} 43. Kg3 {[%emt 0:00:20]} Ra2 {[%emt 0:02:21]} 44. f4 {[%emt 0:00:06]} Rb2 {[%emt 0:01:28]} 45. Kf3 {[%emt 0:00:22]} Ra2 {[%emt 0:00:17]} 46. g3 {[%emt 0:00:28]} (46. Rc7+ $16 Kf6 47. Rc5) 46... Ra3+ {[%emt 0:00:36]} (46... Ra5 $1 $11 {remains equal.}) 47. Kg4 $1 $16 {[%emt 0:00:01]} Rb3 {[%emt 0:00:39]} 48. Rc4 {[%emt 0:01:03]} Ra3 {[%emt 0:00:37]} 49. Kh4 {[%emt 0:01:22]} Rf3 {[%emt 0:01:31]} 50. Re4 {[%emt 0:02:31]} Ra3 {[%emt 0:01:48]} 51. Re5 {[%emt 0:00:50]} Rf3 {[%emt 0:01:42]} 52. Ra5 {[%emt 0:00:46]} Rb3 {[%emt 0:00:45]} 53. Kg4 {[%emt 0:00:25]} Rc3 {[%emt 0:00:28]} 54. Ra2 {[%emt 0:00:10]} Rb3 {[%emt 0:00:13] [#]} 55. Rf2 $1 {[%emt 0:00:01]} Kf6 {[%emt 0:01:15]} 56. Rf3 {[%emt 0:00:06]} Rb6 {[%emt 0:00:33]} 57. Re3 {[%emt 0:00:33]} Ra6 {[%emt 0:01:06]} 58. Kh4 {[%emt 0:00:23]} Ra4 {[%emt 0:01:19]} 59. Rb3 {[%emt 0:00:15]} Rc4 {[%emt 0:02:29]} 60. Rb6+ {[%emt 0:00:54]} Kf7 {[%emt 0:00:10]} 61. Rb3 {[%emt 0:00:19]} Kf6 $1 {[%emt 0:00:51]} 62. Kg4 {[%emt 0:00:07]} Rc6 {[%emt 0:00:10]} 63. Kf3 {[%emt 0:00:12]} Rc4 {[%emt 0:00:15]} 64. g4 {[%emt 0:00:35]} Rc6 {[%emt 0:01:39]} 65. Kg3 {[%emt 0:00:08]} Ra6 {[%emt 0:00:20]} 66. Kh4 {[%emt 0:01:38]} Ra4 {[%emt 0:00:09]} 67. Kg3 {[%emt 0:37:25]} Ra6 $1 {[%emt 0:01:09]} 68. Rc3 {[%emt 0:00:00]} Rb6 {[%emt 0:00:09]} 69. Kh4 {[%emt 0:00:00]} Rb4 {[%emt 0:00:07] [#]} 70. Rc6+ {[%emt 0:00:00]} (70. Rf3 $1 $16) 70... Kf7 $11 {[%emt 0:00:10]} 71. f5 {[%emt 0:00:00]} Ra4 {[%emt 0:01:47]} 72. Rg6 {[%emt 0:00:00]} Rf4 {[%emt 0:01:49]} 73. Kg3 {[%emt 0:00:00]} Rf1 {[%emt 0:00:05]} 74. Re6 {[%emt 0:00:00]} Rg1+ {[%emt 0:01:42]} 75. Kh3 {[%emt 0:00:00]} Rf1 {[%emt 0:00:28]} 76. Kg2 {[%emt 0:00:00]} Rf4 {[%emt 0:00:15]} 77. Kg3 {[%emt 0:00:00]} Rf1 {[%emt 0:00:09]} 78. Re3 {[%emt 0:00:00]} Rg1+ {[%emt 0:00:16]} 79. Kf4 {[%emt 0:00:00]} Rf1+ {[%emt 0:00:18]} 80. Rf3 {[%emt 0:00:00]} Rg1 {[%emt 0:00:27]} 81. Ra3 {[%emt 0:00:00]} Rf1+ {[%emt 0:00:17]} 82. Kg3 {[%emt 0:00:00]} Rg1+ {[%emt 0:00:24]} 83. Kh4 {[%emt 0:00:00]} Rh1+ {[%emt 0:00:14]} 84. Rh3 {[%emt 0:00:00]} Rg1 {[%emt 0:00:34] Weighted Error Value: White=0.07 (flawless) /Black=0.08 (flawless) .  Mistake:       	White=3     	Black=4      Inaccurate:     	White=2     	Black=4      OK:         	White=28    	Black=23     Best:        	White=3     	Black=2      Strong:       	White=2     	Black=4} (84... Rc1 $11 {keeps the balance.}) 1/2-1/2

[Event "1000 GM Labor Day Super Swiss 2024"]
[Site "San Jose"]
[Date "2024.09.03"]
[Round "7.20"]
[White "Angeles Mercado, Anthony R"]
[Black "Bhatta, Rohit"]
[Result "0-1"]
[Annotator "RC"]
[ECO "E04"]
[WhiteElo "2083"]
[BlackElo "2025"]
[PlyCount "116"]
[EventDate "2024.08.30"]
[EventType "swiss"]
[EventCountry "USA"]
[SourceTitle "playchess.com"]
[Source "ChessBase"]
[SourceQuality "1"]
[TimeControl "5400+30"]

1. d4 {[%emt 0:14:26]} Nf6 {[%emt 0:00:18]} 2. c4 {[%emt 0:00:08]} e6 {[%emt 0:00:05]} 3. g3 {[%emt 0:00:06]} d5 {[%emt 0:00:05]} 4. Nf3 {[%emt 0:00:05]} dxc4 {[%emt 0:00:15]} 5. Bg2 {[%emt 0:00:21]} c5 {[%emt 0:00:30]} 6. O-O {[%emt 0:00:26]} Nc6 {[%emt 0:00:17]} 7. Qa4 {[%emt 0:02:29]} Bd7 {[%emt 0:00:17]} 8. Qxc4 {[%emt 0:01:36]} b5 {[%emt 0:00:23]} 9. Qd3 {[%emt 0:04:55]} c4 {[%emt 0:02:01]} 10. Qd1 {[%emt 0:04:58]} Be7 {[%emt 0:12:52]} 11. a4 {[%emt 0:02:15]} b4 {[%emt 0:01:21]} 12. Ne5 {[%emt 0:02:09]} Nxe5 {[%emt 0:02:50]} 13. dxe5 {[%emt 0:05:29]} Nd5 {[%emt 0:01:34]} 14. e4 {[%emt 0:01:44]} Nb6 {[%emt 0:07:28]} 15. a5 {[%emt 0:01:14]} Nc8 {[%emt 0:00:54]} 16. Qg4 {[%emt 0:00:33]} Kf8 {[%emt 0:02:49]} 17. Rd1 {[%emt 0:04:49]} Qc7 {[%emt 0:03:05]} 18. Qe2 {[%emt 0:02:44]} Bb5 {[%emt 0:06:20]} 19. Nd2 {[%emt 0:04:22]} a6 {[%emt 0:03:03]} 20. Nf3 {[%emt 0:00:45]} Na7 {[%emt 0:06:32]} 21. Be3 {[%emt 0:04:31]} Nc6 {[%emt 0:13:48]} 22. Bb6 {[%emt 0:01:07]} Qb7 {[%emt 0:02:16]} 23. Qe3 {[%emt 0:03:24]} g6 {[%emt 0:12:08]} 24. Qh6+ {[%emt 0:04:40]} Kg8 {[%emt 0:00:05]} 25. h4 {[%emt 0:05:04]} Bf8 {[%emt 0:01:25]} 26. Qf4 {[%emt 0:00:13]} h5 {[%emt 0:03:55]} 27. Rd2 {[%emt 0:05:48]} Bh6 {[%emt 0:01:25]} 28. Ng5 {[%emt 0:00:12]} Bg7 {[%emt 0:01:09]} 29. Rad1 {[%emt 0:18:07]} Bxe5 {[%emt 0:06:41]} 30. Qf3 {[%emt 0:00:10]} Qe7 {[%emt 0:05:48]} 31. Qe3 {[%emt 0:02:16]} Rf8 {[%emt 0:03:19]} 32. f4 {[%emt 0:00:30]} Bf6 {[%emt 0:00:37]} 33. Bc5 {[%emt 0:02:30]} Qe8 {[%emt 0:00:30]} 34. Bxf8 {[%emt 0:00:27]} Qxf8 {[%emt 0:00:30]} 35. e5 {[%emt 0:01:02]} Be7 {[%emt 0:00:42]} 36. Ne4 {[%emt 0:00:31]} Nxa5 {[%emt 0:00:31]} 37. Qb6 {[%emt 0:00:35]} Nc6 {[%emt 0:00:32]} 38. Nf6+ {[%emt 0:01:30]} Kg7 {[%emt 0:00:04]} 39. Nd7 {[%emt 0:01:16]} Qc8 {[%emt 0:00:20]} 40. Qe3 {[%emt 0:00:27]} Rd8 {[%emt 0:00:47]} 41. Nb6 {[%emt 0:00:21]} Qb8 {[%emt 0:00:51]} 42. Rd7 {[%emt 0:00:44]} Rxd7 {[%emt 0:00:34]} 43. Rxd7 {[%emt 0:00:17]} Bd8 {[%emt 0:00:22]} 44. Rxd8 {[%emt 0:00:43]} Qxd8 {[%emt 0:00:15]} 45. Nxc4 {[%emt 0:00:29]} Bxc4 {[%emt 0:00:20]} 46. Bxc6 {[%emt 0:00:05]} Qd1+ {[%emt 0:00:31]} 47. Kg2 {[%emt 0:00:56]} Bf1+ {[%emt 0:00:54]} 48. Kf2 {[%emt 0:00:29]} Bh3 {[%emt 0:00:39]} 49. Qe2 {[%emt 0:00:31]} Qd4+ {[%emt 0:00:17]} 50. Ke1 {[%emt 0:00:29]} Bg4 {[%emt 0:00:34]} 51. Bf3 {[%emt 0:00:30]} Bxf3 {[%emt 0:00:23]} 52. Qxf3 {[%emt 0:00:02]} Qxb2 {[%emt 0:00:09]} 53. Qb7 {[%emt 0:00:38]} Qc3+ {[%emt 0:00:36]} 54. Kf2 {[%emt 0:00:25]} Qc5+ {[%emt 0:00:12]} 55. Ke1 {[%emt 0:00:40]} Qe3+ {[%emt 0:00:54]} 56. Kf1 {[%emt 0:00:41]} Qxg3 {[%emt 0:00:27]} 57. Qxb4 {[%emt 0:00:21]} Qxh4 {[%emt 0:00:20]} 58. Ke2 {[%emt 0:00:40]} Qg3 {[%emt 0:00:46]} 0-1

[Event "1000 GM Labor Day Super Swiss 2024"]
[Site "San Jose"]
[Date "2024.09.03"]
[Round "7.21"]
[White "Alfaro, William"]
[Black "Ubaldo Suarez, Maria Gisela"]
[Result "1-0"]
[Annotator "TA"]
[ECO "D02"]
[WhiteElo "2137"]
[BlackElo "1958"]
[PlyCount "55"]
[EventDate "2024.08.30"]
[EventType "swiss"]
[EventCountry "USA"]
[SourceTitle "playchess.com"]
[Source "ChessBase"]
[SourceQuality "1"]
[TimeControl "5400+30"]

{[%evp 13,55,43,60,13,16,0,36,0,-27,-23,9,5,47,26,29,20,25,18,25,-2,83,96,89,75,107,92,84,45,86,87,195,185,175,191,187,170,177,167,206,195,472,488,464,480]} 1. d4 {[%emt 0:06:45]} d5 {[%emt 0:00:07]} 2. c4 {[%emt 0:00:10]} c6 {[%emt 0:00:09]} 3. Nf3 {[%emt 0:00:08]} h6 {[%emt 0:05:13]} 4. Nc3 {[%emt 0:01:32]} Nf6 {[%emt 0:00:06]} 5. g3 {[%emt 0:00:10]} e6 {[%emt 0:06:57]} 6. Bg2 {[%emt 0:00:09]} Bd6 {[%emt 0:00:12]} 7. O-O {[%emt 0:00:06]} O-O {[%emt 0:00:03]} 8. Nd2 {[%emt 0:01:21]} (8. Ne5 $14) 8... e5 $11 {[%emt 0:15:50]} 9. dxe5 {[%emt 0:00:20]} Bxe5 {[%emt 0:00:01]} 10. Nf3 {[%emt 0:00:59]} (10. cxd5 $14 Nxd5 11. Nxd5 cxd5 12. Nb3) 10... Bxc3 {[%emt 0:06:23]} 11. bxc3 {[%emt 0:00:01]} Qa5 {[%emt 0:03:11]} 12. cxd5 {[%emt 0:00:50]} Qxd5 {[%emt 0:07:53]} 13. Qd4 {[%emt 0:09:05]} Nbd7 {[%emt 0:05:52]} 14. Bf4 {[%emt 0:03:32]} Re8 {[%emt 0:01:27]} 15. Rfe1 {[%emt 0:08:17][%cal Of3e5]} Qh5 {[%emt 0:03:58]} 16. h3 {[%emt 0:03:17]} Nd5 {[%emt 0:00:44]} (16... Nf8 $11 {remains equal.}) 17. g4 $1 $16 {[%emt 0:02:17]} Qg6 {[%emt 0:02:44] Hoping for ...Re4.} 18. Bg3 {[%emt 0:00:52]} Qc2 {[%emt 0:05:36][%csl LRc3,LRe2]} 19. Rac1 {[%emt 0:06:49]} Qxa2 {[%emt 0:00:31][%cal Od5f6]} 20. c4 {[%emt 0:03:54]} N5f6 {[%emt 0:05:13][%cal Of6e4]} 21. e4 $1 {[%emt 0:02:49][%cal Be2e4,Be4e5][%mdl 1056] White has strong compensation.} c5 {[%emt 0:07:27]} (21... Qa3 $16) 22. Qd3 $18 {[%emt 0:00:20]} Nb6 {[%emt 0:01:07]} 23. e5 {[%emt 0:17:21]} Nh7 {[%emt 0:01:03] [#]} 24. Nd2 $1 {[%emt 0:07:22] And now Ra1 would win.} Be6 {[%emt 0:03:00] [#]} 25. Ra1 $1 $36 {[%emt 0:00:26][%mdl 2048] Black is under strong pressure.} (25. Bxb7 Rad8 26. Rc2 Rxd3 $15) 25... Qb2 {[%emt 0:00:58] ...Rad8 is the strong threat.} 26. Reb1 $1 {[%emt 0:01:38]} (26. Bxb7 $2 Rad8 27. Qe3 (27. Bd5 $2 Nxd5 28. Ne4 Nb4 $19) 27... Qxd2 $19) 26... Rad8 $2 {[%emt 0:09:07]} (26... Qd4 27. Qxd4 cxd4) 27. Qxh7+ {[%emt 0:00:25]} (27. Rxb2 Rxd3 28. Rxa7 (28. Bxb7 Nxc4 29. Nxc4 Bxc4 $11) 28... Nxc4 29. Nxc4 (29. Rbxb7 $2 {is the wrong capture.} Nxd2 30. Rc7 c4 $19) 29... Bxc4 $11) 27... Kxh7 {[%emt 0:00:01]} 28. Rxb2 {[%emt 0:00:17] Weighted Error Value: White=0.10 (very precise) /Black=0.36.  Mistake:       	White=1     	Black=3      Inaccurate:     	White=2     	Black=4      OK:         	White=5     	Black=7      Best:        	White=2     	Black=1      Strong:       	White=5     	---} 1-0